{"text_format":"1","workbook":"xlsx","n_sheets":11,"sheets":["Sommaire","Formations","Domaines","Combustible","Dechet","Transport","Manutention","Securite_surete","Surveillance","Agents","Exemple"],"not_rendered":{"charts":0,"images":0,"macros":1,"external_links":0,"defined_names":12,"comments":0,"pivot_tables":0},"unopened":[],"bounds":{"document_bytes":16777216,"sheet_cells":100000,"rows_first":2000,"rows_last":500,"rows_between":2000,"halvings":0,"cell_chars":16384,"cell_head_chars":4096},"cells_cut":0,"cells_raw":0,"read":"whole","date_system":"1900"}

{"sheet":"Sommaire","index":0,"n_rows":18,"n_cols":12,"rows_kept":18,"cut":false,"hidden":false,"merged":[[0,3,0,10],[1,6,1,7],[0,0,0,1]]}
[null,null,null,"Suivi et contrôle des Habilitations et des CIF"]
[null,null,null,null,null,null,2018,null,null," ",null," "]
[]
[]
[null,null,null,null,null,null,null,null,null,null,null," "]
[]
[]
[null,null,null,null,null,null,null,null,null,null," "]
[]
[]
[]
[]
[]
[]
[]
[]
[]
[null," "]

{"sheet":"Formations","index":1,"n_rows":88,"n_cols":9,"rows_kept":88,"cut":false,"hidden":false,"merged":[[32,0,32,1],[42,0,42,1],[3,0,3,1],[18,0,18,1],[82,0,82,1],[57,4,57,5],[57,12,57,15],[57,16,57,19],[57,22,57,25],[57,0,57,1]]}
[null,"Formations & Compétences"]
[]
[null,"Recyclage"]
["Combustible"]
["COMBU 1","x"]
["COMBU 2","x"]
["COMBU 3","5 ans"]
["COMBU 4","x"]
["COMBU 5","x",null,null,null,null,null,null,"Securite_surete"]
["COMBU 6","x"]
["COMBU 7","5 ans"]
["COMBU 8","x"]
["COMBU 9","x"]
["COMBU 10","x"]
["COMBU 11","x"]
[]
[]
[]
["Déchet"]
["DECHET 1","x"]
["DECHET 2","x"]
["DECHET 3","x"]
["DECHET 4","x"]
["DECHET 5","x"]
["DECHET 6","3 ans"]
["DECHET 7","x"]
[]
[]
[]
[]
[]
[]
["Transport"]
["TRANSP 1","5 ans"]
["TRANSP 2","5 ans"]
["TRANSP 3","5 ans"]
["TRANSP 4","x"]
[]
[]
[]
[]
[]
["Manutention"]
["MANUT 1","5 ans"]
["MANUT 2","5 ans"]
["MANUT 3","5 ans"]
["MANUT 4","5 ans"]
["MANUT 5","5 ans"]
["MANUT 6","5 ans"]
["MANUT 7","5 ans"]
["MANUT 8","x"]
[]
[]
[]
[]
[]
[]
["Sécurité/sûreté"]
["SECU 1","3 ans"]
["SECU 2","3 ans"]
["SECU 3","3 ans"]
["SECU 4","x"]
["SECU 5","x"]
["SECU 6","x"]
["SECU 7","x"]
["SECU 8","3 ans"]
["SECU 9","2 ans"]
["SECU 10","x"]
["SECU 11","5 ans"]
["SECU 12","x"]
["SECU 13","3 ans"]
["SECU 14","3 ans"]
["SECU 15","3 ans"]
[]
[]
[]
[]
[]
[]
[]
[]
[]
["Surveillance"]
["SURV 1","x"]
["SURV 2","x"]
["SURV 3","x"]
["SURV 4","x"]
["SURV 5","x"]

{"sheet":"Domaines","index":2,"n_rows":2,"n_cols":8,"rows_kept":2,"cut":false,"hidden":false,"merged":[]}
[]
[null,null,null,null,null,null,null,"Domaines"]

{"sheet":"Combustible","index":3,"n_rows":83,"n_cols":59,"rows_kept":83,"cut":false,"hidden":false,"merged":[[4,3,4,6],[4,7,4,10],[4,15,4,18],[4,19,4,22],[4,23,4,26],[4,47,4,50],[4,51,4,54],[4,55,4,58],[1,14,1,15],[4,11,4,14],[4,27,4,30],[4,31,4,34],[4,35,4,38],[4,39,4,42],[4,43,4,46]]}
[]
[null,null,"Domaine",null,null,null,null,null,null,null,null,null,null,null,2018]
[]
[]
[null,null,"Formation","Combu 1",null,null,null,"Combu 2",null,null,null,"Combu 3",null,null,null,"Combu 4",null,null,null,"Combu 5",null,null,null,"Combu 6",null,null,null,"Combu 7",null,null,null,"Combu 8",null,null,null,"Combu 9",null,null,null,"Combu 10",null,null,null,"Combu 11"]
["Nom","Prénom","Fonction","Formation initiale","Recyclage","Echéance recyclage","Demande à faire en","Formation initiale","Recyclage","Echéance recyclage","Demande à faire en","Formation initiale","Recyclage","Echéance recyclage","Demande à faire en","Formation initiale","Recyclage","Echéance recyclage","Demande à faire en","Formation initiale","Recyclage","Echéance recyclage","Demande à faire en","Formation initiale","Recyclage","Echéance recyclage","Demande à faire en","Formation initiale","Recyclage","Échéance recyclage","Demande à faire en","Formation initiale","Recyclage","Échéance recyclage","Demande à faire en","Formation initiale","Recyclage","Échéance recyclage","Demande à faire en","Formation initiale","Recyclage","Échéance recyclage","Demande à faire en","Formation initiale","Recyclage","Échéance recyclage","Demande à faire en","Formation initiale","Recyclage","Échéance recyclage","Demande à faire en","Formation initiale","Recyclage","Échéance recyclage","Demande à faire en","Formation initiale","Recyclage","Échéance recyclage","Demande à faire en"]
[null,null,null,null,null,null,null,null,{"$f":"IF(H7=\"x\",\"x\",H7+3*365)","v":"1902-12-30"},{"$f":"IF(I7=\"x\",\"x\",YEAR($I7)-1)","v":"1905-03-15"}]
[null,null,null,null,null,null,null,null,"1902-12-30","1905-03-15"]
[null,null,null,null,null,null,null,null,"1902-12-30","1905-03-15"]
[null,null,null,null,null,null,null,null,"1902-12-30","1905-03-15"]
[null,null,null,null,null,null,null,null,"1902-12-30","1905-03-15"]
[null,null,null,null,null,null,null,null,"1902-12-30","1905-03-15"]
[null,null,null,null,null,null,null,null,"1902-12-30","1905-03-15"]
[null,null,null,null,null,null,null,null,"1902-12-30","1905-03-15"]
[null,null,null,null,null,null,null,null,"1902-12-30","1905-03-15"]
[]
[]
[]
[]
[]
[]
[]
[]
[]
[]
[]
[]
[]
[]
[]
[]
[]
[]
[]
[]
[]
[]
[]
[]
[]
[]
[]
[]
[]
[]
[]
[]
[]
[]
[]
[]
[]
[]
[null,null,null,null,null,null,null,null,"1902-12-30","1905-03-15"]
[null,null,null,null,null,null,null,null,"1902-12-30","1905-03-15"]
[null,null,null,null,null,null,null,null,"1902-12-30","1905-03-15"]
[null,null,null,null,null,null,null,null,"1902-12-30","1905-03-15"]
[null,null,null,null,null,null,null,null,"1902-12-30","1905-03-15"]
[null,null,null,null,null,null,null,null,"1902-12-30","1905-03-15"]
[null,null,null,null,null,null,null,null,"1902-12-30","1905-03-15"]
[null,null,null,null,null,null,null,null,"1902-12-30","1905-03-15"]
[null,null,null,null,null,null,null,null,"1902-12-30","1905-03-15"]
[null,null,null,null,null,null,null,null,"1902-12-30","1905-03-15"]
[null,null,null,null,null,null,null,null,"1902-12-30","1905-03-15"]
[null,null,null,null,null,null,null,null,"1902-12-30","1905-03-15"]
[null,null,null,null,null,null,null,null,"1902-12-30","1905-03-15"]
[null,null,null,null,null,null,null,null,"1902-12-30","1905-03-15"]
[null,null,null,null,null,null,null,null,"1902-12-30","1905-03-15"]
[null,null,null,null,null,null,null,null,"1902-12-30","1905-03-15"]
[null,null,null,null,null,null,null,null,"1902-12-30","1905-03-15"]
[null,null,null,null,null,null,null,null,"1902-12-30","1905-03-15"]
[null,null,null,null,null,null,null,null,"1902-12-30","1905-03-15"]
[null,null,null,null,null,null,null,null,"1902-12-30","1905-03-15"]
[null,null,null,null,null,null,null,null,"1902-12-30","1905-03-15"]
[null,null,null,null,null,null,null,null,"1902-12-30","1905-03-15"]
[null,null,null,null,null,null,null,null,"1902-12-30","1905-03-15"]
[null,null,null,null,null,null,null,null,"1902-12-30","1905-03-15"]
[null,null,null,null,null,null,null,null,"1902-12-30","1905-03-15"]
[null,null,null,null,null,null,null,null,"1902-12-30","1905-03-15"]
[null,null,null,null,null,null,null,null,"1902-12-30","1905-03-15"]
[null,null,null,null,null,null,null,null,"1902-12-30","1905-03-15"]
[null,null,null,null,null,null,null,null,"1902-12-30","1905-03-15"]
[null,null,null,null,null,null,null,null,"1902-12-30","1905-03-15"]

{"sheet":"Dechet","index":4,"n_rows":6,"n_cols":55,"rows_kept":6,"cut":false,"hidden":false,"merged":[[4,3,4,6],[4,7,4,10],[4,11,4,14],[4,15,4,18],[4,19,4,22],[1,19,1,23],[4,51,4,54],[4,47,4,50],[4,23,4,26],[4,31,4,34],[4,35,4,38],[4,39,4,42],[4,43,4,46],[4,27,4,30]]}
[]
[null,null,null,null,null,null,null,null,null,null,null,null,null,null,null,null,null,null,null,2018]
[]
[]
[null,null,"Formation","Dechet 1",null,null,null,"Dechet 2",null,null,null,"Dechet 3",null,null,null,"Dechet 4",null,null,null,"Dechet 5",null,null,null,"Dechet 6",null,null,null,"Dechet 7"]
["Nom","Prénom","Fonction","Formation initiale","Recyclage","Échéance recyclage","Demande à faire en","Formation initiale","Recyclage","Échéance recyclage","Demande à faire en","Formation initiale","Recyclage","Échéance recyclage","Demande à faire en","Formation initiale","Recyclage","Échéance recyclage","Demande à faire en","Formation initiale","Recyclage","Échéance recyclage","Demande à faire en","Formation initiale","Recyclage","Échéance recyclage","Demande à faire en","Formation initiale","Recyclage","Échéance recyclage","Demande à faire en","Formation initiale","Recyclage","Échéance recyclage","Demande à faire en","Formation initiale","Recyclage","Échéance recyclage","Demande à faire en","Formation initiale","Recyclage","Échéance recyclage","Demande à faire en","Formation initiale","Recyclage","Échéance recyclage","Demande à faire en","Formation initiale","Recyclage","Échéance recyclage","Demande à faire en","Formation initiale","Recyclage","Échéance recyclage","Demande à faire en"]

{"sheet":"Transport","index":5,"n_rows":6,"n_cols":39,"rows_kept":6,"cut":false,"hidden":false,"merged":[[4,31,4,34],[4,35,4,38],[4,3,4,6],[4,7,4,10],[1,8,1,9],[4,11,4,14],[4,19,4,22],[4,23,4,26],[4,27,4,30],[4,15,4,18]]}
[]
[null,null,null,null,null,null,null,null,2018]
[]
[]
["Sommaire",null,"Formation","Transp 1",null,null,null,"Transp 2",null,null,null,"Transp 3",null,null,null,"Transp 4"]
["Nom","Prénom","Fonction","Formation initiale","Recyclage","Echéance recyclage","Demande à faire en","Formation initiale","Recyclage","Échéance recyclage","Demande à faire en","Formation initiale","Recyclage","Échéance recyclage","Demande à faire en","Formation initiale","Recyclage","Échéance recyclage","Demande à faire en","Formation initiale","Recyclage","Echéance recyclage","Demande à faire en","Formation initiale","Recyclage","Echéance recyclage","Demande à faire en","Formation initiale","Recyclage","Echéance recyclage","Demande à faire en","Formation initiale","Recyclage","Echéance recyclage","Demande à faire en","Formation initiale","Recyclage","Echéance recyclage","Demande à faire en"]

{"sheet":"Manutention","index":6,"n_rows":6,"n_cols":59,"rows_kept":6,"cut":false,"hidden":false,"merged":[[4,31,4,34],[4,19,4,22],[4,23,4,26],[4,27,4,30],[1,8,1,9],[4,0,4,1],[4,3,4,6],[4,7,4,10],[4,11,4,14],[4,15,4,18],[4,55,4,58],[4,35,4,38],[4,39,4,42],[4,43,4,46],[4,47,4,50],[4,51,4,54]]}
[]
[null,null,null,null,null,null,null,null,2018]
[]
[]
[null,null,"Formation","Manut 1",null,null,null,"Manut 2",null,null,null,"Manut 3",null,null,null,"Manut 4",null,null,null,"Manut 5",null,null,null,"Manut 6",null,null,null,"Manut 7",null,null,null,"Manut 8"]
["Nom","Prénom","Fonction","Formation initiale","Recyclage","Echéance recyclage","Demande à faire en","Formation initiale","Recyclage","Échéance recyclage","Demande à faire en","Formation initiale","Recyclage","Echéance recyclage","Demande à faire en","Formation initiale","Recyclage","Échéance recyclage","Demande à faire en","Formation initiale","Recyclage","Echéance recyclage","Demande à faire en","Formation initiale","Recyclage","Échéance recyclage","Demande à faire en","Formation initiale","Recyclage","Echéance recyclage","Demande à faire en","Formation initiale","Recyclage","Echéance recyclage","Demande à faire en","Formation initiale","Recyclage","Echéance recyclage","Demande à faire en","Formation initiale","Recyclage","Echéance recyclage","Demande à faire en","Formation initiale","Recyclage","Echéance recyclage","Demande à faire en","Formation initiale","Recyclage","Echéance recyclage","Demande à faire en","Formation initiale","Recyclage","Echéance recyclage","Demande à faire en","Formation initiale","Recyclage","Echéance recyclage","Demande à faire en"]

{"sheet":"Securite_surete","index":7,"n_rows":6,"n_cols":99,"rows_kept":6,"cut":false,"hidden":false,"merged":[[4,83,4,86],[4,87,4,90],[4,91,4,94],[4,95,4,98],[4,63,4,66],[4,67,4,70],[4,71,4,74],[4,75,4,78],[4,79,4,82],[1,8,1,9],[4,11,4,14],[4,55,4,58],[4,59,4,62],[4,3,4,6],[4,7,4,10],[4,51,4,54],[4,35,4,38],[4,43,4,46],[4,31,4,34],[4,15,4,18],[4,27,4,30],[4,23,4,26],[4,19,4,22],[4,39,4,42],[4,47,4,50]]}
[]
[null,null,null,null,null,null,null,null,2018]
[]
[]
[null,null,"Formation","Secu 1",null,null,null,"Secu 2",null,null,null,"Secu 3",null,null,null,"Secu 4",null,null,null,"Secu 5",null,null,null,"Secu 6",null,null,null,"Secu 7",null,null,null,"Secu 8",null,null,null,"Secu 9",null,null,null,"Secu 10",null,null,null,"Secu 11",null,null,null,"Secu 12",null,null,null,"Secu 13",null,null,null,"Secu 14",null,null,null,"Secu 15"]
["Nom","Prénom","Fonction","Formation initiale","Recyclage","Echéance recyclage","Demande à faire en","Formation initiale","Recyclage","Echéance recyclage","Demande à faire en","Formation initiale","Recyclage","Échéance recyclage","Demande à faire en","Formation initiale","Recyclage","Échéance recyclage","Demande à faire en","Formation initiale","Recyclage","Échéance recyclage","Demande à faire en","Formation initiale","Recyclage","Échéance recyclage","Demande à faire en","Formation initiale","Recyclage","Échéance recyclage","Demande à faire en","Formation initiale","Recyclage","Échéance recyclage","Demande à faire en","Formation initiale","Recyclage","Échéance recyclage","Demande à faire en","Formation initiale","Recyclage","Échéance recyclage","Demande à faire en","Formation initiale","Recyclage","Échéance recyclage","Demande à faire en","Formation initiale","Recyclage","Échéance recyclage","Demande à faire en","Formation initiale","Recyclage","Échéance recyclage","Demande à faire en","Formation initiale","Recyclage","Échéance recyclage","Demande à faire en","Formation initiale","Recyclage","Échéance recyclage","Demande à faire en","Formation initiale","Recyclage","Échéance recyclage","Demande à faire en","Formation initiale","Recyclage","Échéance recyclage","Demande à faire en","Formation initiale","Recyclage","Échéance recyclage","Demande à faire en","Formation initiale","Recyclage","Échéance recyclage","Demande à faire en","Formation initiale","Recyclage","Échéance recyclage","Demande à faire en","Formation initiale","Recyclage","Échéance recyclage","Demande à faire en","Formation initiale","Recyclage","Échéance recyclage","Demande à faire en","Formation initiale","Recyclage","Échéance recyclage","Demande à faire en","Formation initiale","Recyclage","Échéance recyclage","Demande à faire en"]

{"sheet":"Surveillance","index":8,"n_rows":6,"n_cols":35,"rows_kept":6,"cut":false,"hidden":false,"merged":[[4,7,4,10],[4,3,4,6],[1,10,1,11],[4,27,4,30],[4,31,4,34],[4,23,4,26],[4,19,4,22],[4,15,4,18],[4,11,4,14]]}
[]
[null,null,null,null,null,null,null,null,null,null,2018]
[]
[]
[null,null,"Formation","Surv 1",null,null,null,"Surv 2",null,null,null,"Surv 3",null,null,null,"Surv 4",null,null,null,"Surv 5"]
["Nom","Prénom","Fonction","Formation initiale","Recyclage","Echéance recyclage","Demande à faire en","Formation initiale","Recyclage","Echéance recyclage","Demande à faire en","Formation initiale","Recyclage","Echéance recyclage","Demande à faire en","Formation initiale","Recyclage","Echéance recyclage","Demande à faire en","Formation initiale","Recyclage","Echéance recyclage","Demande à faire en","Formation initiale","Recyclage","Echéance recyclage","Demande à faire en","Formation initiale","Recyclage","Echéance recyclage","Demande à faire en","Formation initiale","Recyclage","Echéance recyclage","Demande à faire en"]

{"sheet":"Agents","index":9,"n_rows":2,"n_cols":8,"rows_kept":2,"cut":false,"hidden":false,"merged":[]}
[]
[null,null,null,null,null,null,null,"Liste des Agents"]

{"sheet":"Exemple","index":10,"n_rows":85,"n_cols":10,"rows_kept":85,"cut":false,"hidden":false,"merged":[[5,10,5,11],[56,1,79,1],[80,1,87,1],[0,6,0,7],[3,0,3,1],[6,1,19,1],[20,1,32,1],[33,1,41,1],[42,1,55,1]]}
["Nom","Prénom","Poste"]
[]
[null,null,null,null,null,null,null,null," "]
[2018]
[null,null,null,null,null,null," "]
[null,null,"Formations","Niveau","N° Formation","N° Recyclage","Formation initiale","Date dernier recyclage","Échéance Recyclage","Demande de recyclage à faire en"]
[null,"Combustible","COMBU 1"]
[null,null,"COMBU 2"]
[null,null,"COMBU 3",null,null,null,null,"x",{"$f":"IF(H9=\"x\",\"x\",H9+5*365)","v":"x"},{"$f":"IF(I9=\"x\",\"x\",(YEAR(I9))-1)","v":"x"}]
[null,null,"COMBU 4"]
[null,null,"COMBU 5"]
[null,null,"COMBU 6"]
[null,null,"COMBU 7",null,null,null,null,"x",{"$f":"IF(H13=\"x\",\"x\",H13+5*365)","v":"x"},{"$f":"IF(I13=\"x\",\"x\",(YEAR(I13))-1)","v":"x"}]
[null,null,"COMBU 8"]
[null,null,"COMBU 9"]
[null,null,"COMBU 10"]
[null,null,"COMBU 11"]
[]
[]
[]
[null,"Déchet","DECHET 1"]
[null,null,"DECHET 2"]
[null,null,"DECHET 3"]
[null,null,"DECHET 4"]
[null,null,"DECHET 5"]
[null,null,"DECHET 6",null,null,null,null,"x",{"$f":"IF(H26=\"x\",\"x\",H26+3*365)","v":"x"},{"$f":"IF(I26=\"x\",\"x\",(YEAR(I26))-1)","v":"x"}]
[null,null,"DECHET 7"]
[]
[]
[]
[]
[]
[]
[null,"Transport","TRANSP 1",null,null,null,null,"x",{"$f":"IF(H34=\"x\",\"x\",H34+5*365)","v":"x"},{"$f":"IF(I34=\"x\",\"x\",(YEAR(I34))-1)","v":"x"}]
[null,null,"TRANSP 2",null,null,null,null,"x",{"$f":"IF(H35=\"x\",\"x\",H35+5*365)","v":"x"},{"$f":"IF(I35=\"x\",\"x\",(YEAR(I35))-1)","v":"x"}]
[null,null,"TRANSP 3",null,null,null,null,"x",{"$f":"IF(H36=\"x\",\"x\",H36+5*365)","v":"x"},{"$f":"IF(I36=\"x\",\"x\",(YEAR(I36))-1)","v":"x"}]
[null,null,"TRANSP 4"]
[]
[]
[]
[]
[]
[null,"Manutention","MANUT 1",null,null,null,null,"x",{"$f":"IF(H43=\"x\",\"x\",H43+5*365)","v":"x"},{"$f":"IF(I43=\"x\",\"x\",(YEAR(I43))-1)","v":"x"}]
[null,null,"MANUT 2",null,null,null,null,"x","x","x"]
[null,null,"MANUT 3",null,null,null,null,"x","x","x"]
[null,null,"MANUT 4",null,null,null,null,"x","x","x"]
[null,null,"MANUT 5",null,null,null,null,"x","x","x"]
[null,null,"MANUT 6",null,null,null,null,"x","x","x"]
[null,null,"MANUT 7",null,null,null,null,"x","x","x"]
[null,null,"MANUT 8"]
[]
[]
[]
[]
[]
[]
[null,"Sécurité/Sûreté","SECU 1",null,null,null,null,"x",{"$f":"IF(H57=\"x\",\"x\",H57+3*365)","v":"x"},{"$f":"IF(I57=\"x\",\"x\",(YEAR(I57))-1)","v":"x"}]
[null,null,"SECU 2",null,null,null,null,"x",{"$f":"IF(H58=\"x\",\"x\",H58+3*365)","v":"x"},{"$f":"IF(I58=\"x\",\"x\",(YEAR(I58))-1)","v":"x"}]
[null,null,"SECU 3",null,null,null,null,"x",{"$f":"IF(H59=\"x\",\"x\",H59+3*365)","v":"x"},{"$f":"IF(I59=\"x\",\"x\",(YEAR(I59))-1)","v":"x"}]
[null,null,"SECU 4"]
[null,null,"SECU 5"]
[null,null,"SECU 6"]
[null,null,"SECU 7"]
[null,null,"SECU 8",null,null,null,null,"x",{"$f":"IF(H64=\"x\",\"x\",H64+3*365)","v":"x"},{"$f":"IF(I64=\"x\",\"x\",(YEAR(I64))-1)","v":"x"}]
[null,null,"SECU 9",null,null,null,null,"x",{"$f":"IF(H65=\"x\",\"x\",H65+2*365)","v":"x"},{"$f":"IF(I65=\"x\",\"x\",(YEAR(I65))-1)","v":"x"}]
[null,null,"SECU 10"]
[null,null,"SECU 11",null,null,null,null,"x",{"$f":"IF(H67=\"x\",\"x\",H67+5*365)","v":"x"},{"$f":"IF(I67=\"x\",\"x\",(YEAR(I67))-1)","v":"x"}]
[null,null,"SECU 12"]
[null,null,"SECU 13",null,null,null,null,"x",{"$f":"IF(H69=\"x\",\"x\",H69+3*365)","v":"x"},{"$f":"IF(I69=\"x\",\"x\",(YEAR(I69))-1)","v":"x"}]
[null,null,"SECU 14",null,null,null,null,"x",{"$f":"IF(H70=\"x\",\"x\",H70+3*365)","v":"x"},{"$f":"IF(I70=\"x\",\"x\",(YEAR(I70))-1)","v":"x"}]
[null,null,"SECU 15",null,null,null,null,"x",{"$f":"IF(H71=\"x\",\"x\",H71+3*365)","v":"x"},{"$f":"IF(I71=\"x\",\"x\",(YEAR(I71))-1)","v":"x"}]
[]
[]
[]
[]
[]
[]
[]
[]
[]
[null,"Surveillance","SURV 1"]
[null,null,"SURV 2"]
[null,null,"SURV 3"]
[null,null,"SURV 4"]
[null,null,"SURV 5"]